Cogmind - Beta 15 @@@ ROGUE MODE // 2025.07.28 @ 01:38:24 Player: Florist Result: Destroyed by YI-UF0 with YI-UF0's Doublenader Performance ------------- Evolutions (0) 0 Regions Visited (2) 400 Robots Destroyed (21) 105 Value Destroyed (533) 533 Prototype IDs (0) 0 Alien Tech Used (0) 0 Bonus (-81) -81 TOTAL SCORE: 957 Bonus ------- Friendly Fire -81 Cogmind --------- Core Integrity 0/250 Matter 285/300 Energy 100/100 System Corruption 0% Temperature Cool (0) Movement Rolling (140) Ox4 Location -10/Mines Parts ------- > --- POWER (1) -------- (None) > --- PROPULSION (2) --- Wheel > --- UTILITY (2) ------ High-capacity Storage Unit Seismic Detector > --- WEAPON (2) ------- Assault Rifle > --- INVENTORY (20) --- Ion Engine Compact Wheel High-capacity Storage Unit Seismic Detector Medium Armor Plating Medium Armor Plating Medium Armor Plating Medium Armor Plating Shield Generator Shield Generator Assault Rifle Assault Rifle Mini Grenade Launcher Mini Grenade Launcher Peak State ------------ > --- POWER ------------ Ion Engine > --- PROPULSION ------- Light Treads Light Treads > --- UTILITY ---------- High-capacity Storage Unit Seismic Detector > --- WEAPON ----------- EM Pulse Gun Small Laser > --- INVENTORY -------- Ion Engine Wheel Compact Wheel Small Storage Unit Seismic Detector Medium Armor Plating Medium Armor Plating Medium Armor Plating Medium Armor Plating EM Pulse Gun EM Pulse Gun Light Assault Rifle Grenade Launcher Mini Grenade Launcher Mini Grenade Launcher [Rating: 9] Favorites ----------- Power Ion Engine Engine Ion Engine Propulsion Light Treads Treads Light Treads Wheel Wheel Utility Seismic Detector Device Seismic Detector Storage High-capacity Storage Unit Weapon EM Pulse Gun Energy Gun EM Pulse Gun Ballistic Gun Assault Rifle Launcher Grenade Launcher Build | -11 -10 -10 ------- Run | Yrd Mat Min Slots Evolved . | . . . Power . | . . . Propulsion . | . . . Utility . | . . . Weapon . | . . . Parts Attached 16 | 7 9 . Power 1 | 1 . . Engine 1 | 1 . . Core . | . . . Reactor . | . . . Propulsion 3 | 2 1 . Treads 2 | 2 . . Leg . | . . . Wheel 1 | . 1 . Hover . | . . . Flight . | . . . Utility 4 | 2 2 . Device 1 | 1 . . Storage 3 | 1 2 . Processor . | . . . Hackware . | . . . Protection . | . . . Artifact . | . . . Weapon 8 | 2 6 . Energy Gun 4 | 1 3 . Energy Cannon . | . . . Ballistic Gun 3 | 1 2 . Ballistic Cannon . | . . . Launcher 1 | . 1 . Special Weapon . | . . . Impact Weapon . | . . . Slashing Weapon . | . . . Piercing Weapon . | . . . Special Melee Weapon . | . . . Unidentified Prototypes . | . . . Parts Lost 6 | . 3 3 Power 1 | . . 1 Propulsion 2 | . 1 1 Utility . | . . . Weapon 3 | . 2 1 Highest Loss Streak 3 | . 2 3 To Critical Strikes . | . . . Average Backups 12 | 2 13 14 Power . | . 1 1 Propulsion 1 | 1 1 1 Utility 5 | . 5 8 Weapon 4 | . 5 4 Tool/Special . | . . . Unused Backups 14 | . 1 13 Power 1 | . . 1 Propulsion 1 | . . 1 Utility 8 | . 1 7 Weapon 4 | . . 4 Tool/Special . | . . . Average Slot Usage (%) 95 | . 95 99 Engine 13 | . 14 13 Treads 20 | . 21 14 Wheel 3 | . 2 14 Device 14 | . 14 14 Storage 14 | . 14 14 Energy Gun 18 | . 21 . Ballistic Gun 9 | . 6 28 Peak Build Rating 9 | 7 9 9 Average Rating 7 | 5 7 8 On Entrance 5 | . 7 9 Naked Turns . | . . . Heaviest Build 50 | 13 50 50 Greatest Support 40 | 40 40 10 Greatest Overweight (x) 4 | . 4 4 Average Overweight (x) 2 | . 2 4 Largest Inventory Capacity 20 | 8 20 20 Average Capacity 19 | 7 19 20 Most Carried 17 | 5 17 14 Average Carried 12 | 2 13 14 Final Capacity 20 | 8 20 20 Final Carried 14 | 5 14 14 Class Distribution -------------------- 100% | Mutant Dominant Class ---------------- Mutant | -10/Materials Mutant | -10/Mines Resources | -11 -10 -10 ----------- Run | Yrd Mat Min Matter Collected 492 | 259 233 . Remotely . | . . . Salvage Created 875 | 124 751 . Parts 43 | 10 33 . Haulers Intercepted 2 | . 2 . Recyclers Shooed 1 | . 1 . Parts Field Recycled . | . . . Retrieved Matter . | . . . Parts Self-Destructed . | . . . Prevented . | . . . Kills | -11 -10 -10 ------- Run | Yrd Mat Min Combat Hostiles Destroyed 10 | . 10 . Guns 7 | . 7 . AOE 3 | . 3 . Classes Destroyed 5 | 2 3 . Tunneler 3 | 2 1 . Hauler 2 | . 2 . Recycler 3 | 1 2 . Watcher 3 | . 3 . Grunt 10 | . 10 . Best Kill Streak 7 | 3 7 . Combat Bots Only 4 | . 4 . Max Kills in Single Turn 1 | 1 1 . Gunslinging . | . . . Exploded 1 | . 1 . Melee . | . . . Uniques/NPCs Destroyed . | . . . Combat | -11 -10 -10 -------- Run | Yrd Mat Min Hostile Shots Fired 69 | . 57 12 Missed 21 | . 19 2 Hits 48 | . 38 10 Projectile 48 | . 38 10 AOE 10 | . . 10 Damage Taken 968 | . 603 365 Core 255 | . 117 138 Absorbed by Shields . | . . . Core Remaining (%) 100 | 100 . . Volleys Fired 74 | 6 63 5 Largest 2 | 2 2 2 Hottest 80 | 60 80 40 Shots Fired 130 | 12 108 10 Gun 119 | 12 97 10 Cannon . | . . . Launcher 11 | . 11 . Special . | . . . Kinetic 32 | 6 16 10 Thermal 28 | 6 22 . Explosive 11 | . 11 . Electromagnetic 59 | . 59 . Robot Hit Streak 8 | 3 8 5 Robot Miss Streak 3 | 3 3 2 Penetration Max . | . . . Secondary Targets 1 | . 1 . Max Gunslinging Chain 1 | . 1 . Shots Hit Robots 79 | 5 67 7 Core Hits 40 | 5 33 2 Critical Kills . | . . . Critical Parts Destroyed . | . . . Critical Strikes 1 | . 1 . Corrupt 1 | . 1 . Melee Attacks . | . . . Impact . | . . . Slashing . | . . . Piercing . | . . . Sneak Attacks . | . . . Combat Hostiles . | . . . Follow-up Attacks . | . . . Damage Inflicted 1573 | 45 1436 92 Guns 874 | 45 737 92 Cannons . | . . . Explosions 694 | . 694 . Melee . | . . . Ramming 5 | . 5 . Kinetic 214 | 25 97 92 Thermal 283 | 20 263 . Explosive 551 | . 551 . Electromagnetic 520 | . 520 . Impact . | . . . Slashing . | . . . Piercing . | . . . Highest Corruption . | . . . Average Corruption . | . . . Corruption Purged . | . . . Corruption Blocked . | . . . Overload Shots . | . . . Overflow Damage 7 | . 7 . Projectiles . | . . . Explosions 7 | . 7 . Melee . | . . . Knockbacks . | . . . Impact . | . . . Kinetic . | . . . Secondary . | . . . Self-Inflicted Damage 70 | . 70 . Shots 3 | . 3 . Rammed 1 | . 1 . Targets Rammed 1 | . 1 . Kicked . | . . . Crushed . | . . . Highest Temperature 153 | 20 153 . Average Temperature 44 | 13 46 . Received Heat Transfer 294 | . 294 . Siege Activations . | . . . Martial Activations . | . . . Shielding Activations . | . . . Robots Disrupted . | . . . Combat Hostiles . | . . . Robots Corrupted . | . . . Combat Hostiles . | . . . Parts Fried 1 | . 1 . Impact Corruptions . | . . . Robots Melted . | . . . Combat Hostiles . | . . . Parts Melted . | . . . Heat Transferred 475 | 50 425 . Parts Sabotaged . | . . . Parts Stolen . | . . . Parts Stripped . | . . . Power Chain Reactions 3 | . 3 . Alert | -11 -10 -10 ------- Run | Yrd Mat Min Maximum Alert Level . | . . . Low Security (%) 100 | 100 100 100 Level 1 . | . . . Level 2 . | . . . Level 3 . | . . . Level 4 . | . . . Level 5 . | . . . High Security . | . . . Max Security . | . . . Peak Influence 181 | 10 181 . Initial . | . . . Average 27 | . 32 . Influence Increases 444 | 15 429 . Destroy 0b10 Robot/C 200 | . 200 . Destroy 0b10 Robot/NC 55 | 15 40 . Destroy Leader 60 | . 60 . Successful Hack 15 | . 15 . Disable Machine 75 | . 75 . Destroy Structure 39 | . 39 . Influence Decreases 444 | 15 429 . Time Decay 421 | 15 406 . Lost Part 23 | . 23 . Squads Dispatched 1 | . 1 . Investigation . | . . . Extermination . | . . . Reinforcement 1 | . 1 . Assault . | . . . Garrison . | . . . Intercept . | . . . Searches Triggered . | . . . Construction Impeded . | . . . Haulers Reinforced . | . . . Active Scanning Responses . | . . . Cargo Convoy Interrupts . | . . . Stealth | -11 -10 -10 --------- Run | Yrd Mat Min Distress Signals 3 | . 3 . Communications Jammed . | . . . Distress Signals . | . . . Times Spotted 16 | . 15 1 Peak Tracking Total 3 | . 3 1 Tactical Retreats . | . . . Traps | -11 -10 -10 ------- Run | Yrd Mat Min Traps Triggered . | . . . Indirectly . | . . . Trap Hack Attempts . | . . . Triggered . | . . . Disarmed . | . . . Reprogrammed . | . . . Reused . | . . . Traps Extracted . | . . . Installed . | . . . Triggered . | . . . Machines | -11 -10 -10 ---------- Run | Yrd Mat Min Machines Disabled 5 | . 5 . Max in Single Turn 2 | . 2 . Machines Repaired . | . . . Machines Dismantled . | . . . Machines Sabotaged . | . . . Overloaded Fab Kills . | . . . Hacking | -11 -10 -10 --------- Run | Yrd Mat Min Machines Accessed 7 | . 7 . Terminals 7 | . 7 . Fabricators . | . . . Repair Stations . | . . . Recycling Units . | . . . Scanalyzers . | . . . Garrison Access . | . . . Total Hacks 19 | . 19 . Successful 14 | . 14 . Failed 5 | . 5 . Catastrophic 1 | . 1 . Database Lockouts . | . . . Manual 19 | . 19 . Terminals 19 | . 19 . Fabricators . | . . . Repair Stations . | . . . Recycling Units . | . . . Scanalyzers . | . . . Garrison Access . | . . . Terminal Hacks 3 | . 3 . Robot Analysis 2 | . 2 . Branch Access Points 1 | . 1 . Fabricator Hacks . | . . . Repair Station Hacks . | . . . Recycling Unit Hacks . | . . . Scanalyzer . | . . . Garrison Access Hacks . | . . . Unauthorized Hacks 11 | . 11 . Terminals 11 | . 11 . Botnet 6 | . 6 . Skim 5 | . 5 . Fabricators . | . . . Repair Stations . | . . . Recycling Units . | . . . Scanalyzers . | . . . Garrison Access . | . . . Data Cores Recovered . | . . . Used . | . . . Hacking Detections 7 | . 7 . Full Trace Events . | . . . Feedback Events . | . . . Feedback Blocked . | . . . Robot Schematics Acquired . | . . . Robots Built . | . . . Authchips . | . . . Time . | . . . Total Robot Build Rating . | . . . Part Schematics Acquired . | . . . Parts Built . | . . . Authchips . | . . . Time . | . . . Total Part Build Rating . | . . . Parts Repaired . | . . . Time . | . . . Parts Recycled . | . . . Recycled Matter . | . . . Retrieved Matter . | . . . Retrieved Components . | . . . Parts Scanalyzed . | . . . Part Schematics Acquired . | . . . Parts Damaged . | . . . Bothacking | -11 -10 -10 ------------ Run | Yrd Mat Min Used RIF Installer . | . . . Robots Hacked . | . . . Non-combat . | . . . Combat . | . . . Robot Hacks Applied . | . . . Relay Couplers Released . | . . . Fabnet Peak Effective % . | . . . Robots Rewired . | . . . Allies Hacked . | . . . Hacks Repelled . | . . . Allies | -11 -10 -10 -------- Run | Yrd Mat Min Total Allies . | . . . Largest Group . | . . . Highest-Rated Group . | . . . Highest-Rated Ally . | . . . Total Orders . | . . . Ally Attacks . | . . . Total Damage . | . . . Kills . | . . . Allies Corrupted . | . . . Allies Melted . | . . . Intel | -11 -10 -10 ------- Run | Yrd Mat Min Active Infowar (turns) 2394 | 29 2087 278 Seismic 2394 | 29 2087 278 Robot Analysis Total 2 | . 2 . Derelict Logs Recovered 1 | . . 1 Drone Launches . | . . . Drone Recoveries . | . . . Exploration | -11 -10 -10 ------------- Run | Yrd Mat Min Turns Passed 2478 | 113 2087 278 Spaces Moved 985 | 60 775 150 Core 17 | 17 . . Treads 604 | 43 561 . Legs . | . . . Wheels 364 | . 214 150 Hover . | . . . Flight . | . . . Fastest Speed 50 | 50 140 140 Average Speed 211 | 128 231 140 Slowest Speed 320 | 160 320 140 Overloaded Moves . | . . . Propulsion Burnouts . | . . . Robots Hopped . | . . . Potential Cave-ins . | . . . Cave-ins Triggered . | . . . Exploration Rate (%) 46 | 6 97 37 Regions Visited 2 Branch Regions 1 Pre-discovered Areas 2 | . 1 1 Known Exits Taken 1 | . 1 . Unknown Exits Taken 1 | 1 . . Scrap Searched 1 | . . 1 Spaces Dug . | . . . Terrain Destroyed 40 | . 40 . Melee . | . . . Projectile . | . . . AOE 40 | . 40 . Terrain Rammed . | . . . Walls Destroyed . | . . . Machines Disabled . | . . . Actions | -11 -10 -10 --------- Run | Yrd Mat Min Total 1251 | 81 961 209 Wait 149 | 4 91 54 Move 983 | 59 774 150 Hop . | . . . Pick Up 21 | 5 16 . Fast Attach 7 | 7 . . Attach 4 | . 4 . Detach . | . . . Swap 6 | . 6 . Drop 6 | . 6 . Fire 74 | 6 63 5 Melee . | . . . Ram . | . . . Kick . | . . . Crush 1 | . 1 . Escape Stasis . | . . . Rewire . | . . . Trap . | . . . Miscellaneous . | . . . Route ------- -11/Scrapyard -10/Materials (discovered 5 exits: *Mat x3 / *Min / Sub) -10/Mines (discovered 3 exits: *Mat x2 / [*Exi]) History --------- Turn | Location | Event 17 | -11/Scrapyard | Discovered new exit (range 15) 114 | -11/Scrapyard | Entered Materials 300 | -10/Materials | Build established: Mutant 813 | -10/Materials | Discovered new exit (range 4) 829 | -10/Materials | Identified exit to Mines 905 | -10/Materials | Learned location of 1 exit from Recycling 971 | -10/Materials | Learned Storage trap positions 1028 | -10/Materials | Learned 4 Subcaves zone layouts 1100 | -10/Materials | Discovered new exit (range 16) 1109 | -10/Materials | Identified exit to Materials 1135 | -10/Materials | Learned Storage stockpile data 1150 | -10/Materials | Learned Storage trap positions 1177 | -10/Materials | Learned Storage stockpile data 1215 | -10/Materials | Identified exit to Subcaves 1319 | -10/Materials | Learned Storage stockpile data 2201 | -10/Materials | Entered Mines 2250 | -10/Mines | Deemed a non-threat by the Exiles lab entrance 2250 | -10/Mines | Discovered new exit (range 5) 2419 | -10/Mines | Learned location of Storage (-9) 2430 | -10/Mines | YI-UF0 nonchalantly dropped a Grenade Launcher on the ground 2470 | -10/Mines | Core integrity fell below 50% 2474 | -10/Mines | Core integrity fell below 20% 2479 | -10/Mines | Destroyed by YI-UF0 with YI-UF0's Doublenader Last Messages --------------- 02212_ K-01 Serf collects debris. 02229_ K-01 Serf cleans the Core Extractor. 02238_ K-01 Serf collects debris. 02250_ "No threat detected, you may enter." 02250_ EXIT=FOUND 02254_ K-01 Serf collects debris. 02314_ Searching scrap... 02314_ Found 44 Matter. 02314_ Found 49 Matter. 02391_ K-01 Serf collects debris. 02419_ Acquired derelict log, extracted data. World map updated: -9/Storage. 02430_ YI-UF0 nonchalantly drops a Grenade Launcher on the ground. 02450_ YI-UF0 mumbles something. 02469_ Ion Engine destroyed. 02470_ YI-UF0: "BOOM TO YOU TOO!" 02475_ Lgt. Treads destroyed. 02477_ The unstable cave ceiling collapses. 02479_ YI-UF0 mumbles something. 02479_ Assault Rifle destroyed. Map ----- +----------------------------------------------------+ | | | | | | | | | | | | | | | | | | | | | | | | | | | | | | | | | | | | | | | | | ????????????????????????###????????????????????? | | ???????????????????##### ##???????????????????? | | ???????????????????# ##??????????????????? | | ???????????????????# #????????###???????? | | ???????????????????# # #???????## ##?????? | | ??????????????????## @ #????????# ##????? | | ???????????######## #???????# #####? | | ??????????## #???????# ## | | ?????????## ##????????# # | | ?????????# ###?????????## | | ?????????# ###?????????# | | ?????????# ##????????## %## | | ?????????## ## #?????????#%#### | | ??????????## ### ###???????# #??# # | | ???????????## #?## # #???????# #??# # | | ????????????#### #??# ## #???????# #??# # | | ???????????????# #??# ##### #???????# #??# # | | ???????????????# #??# g #???# #???##### #??# # | | ???????????????# #???# #????# #???# #??# # | | ???????????????# ##### #????# ##### #####??# | | ???????????????# ] #????# #??????# | | ???????????????# #######????# #######??????## | | ???????????????# #??????????# #?????????????# | | ???????????????# #?????????? #?????????????### | | ???????????????# #????????? ???????????????? | | ???????????????# #???????? ???????????????? | | ??????????????? #???????? ???????????????? | | ??????????????? ###??????? ???????????????? | | ??????????????# ?????????## ???????????????? | | ??????????????# ??????????#? ##???????????????? | +----------------------------------------------------+ Best States ------------- Heat Dissipation 25 Energy Generation 10 Energy Capacity 250 Matter Stores 300 Matter Capacity 300 Sight Range 16 Terrain Scan Density 10 Evasion (%) 50 Recoil Reduction 2 Item Schematics ----------------- None Robot Schematics ------------------ None Fabricated ------------ Nothing Repaired ---------- Nothing Alien Tech Used ----------------- None Achievements -------------- None Challenges ------------ None Game ------ Seed SpikedHybridKinecellerator Manual? 0 Play Time 00:09:54 Cumulative 218.7 hours Start 2025.07.28 @ 01:29:24 End 2025.07.28 @ 01:38:24 Sessions 1 Manual Loads 0 Difficulty Rogue Special Mode None Game No. 191 Rogue 191 Adventurer 0 Explorer 0 Win Type - Total 12 Types 6/0/4/2/0/0/0/0/0/0 Lore% 76 Gallery% 72 Achievement% 68 Wizard Run 0 Options --------- Layout 1 ASCII 0 Keyboard 0 Movement Numpad Keybinds 0 Fullscreen 1 Font 32/SmallcapsGlow Map View 77x35 Zoom Use 0% Tactical HUD 1 Map Filters NONE Filters NONE Steam 1 RUN: 9491b91d-8bc7-4a7a-9b67-2ca9f901d09a